fUST/lending_fUST_20260306
["ID","MTS","AMOUNT","RATE_DAILY","PERIOD"]
[407777029,1772793039508,-150.04094522,3.8e-05,3]
[407777030,1772793039519,-150.10066658,3.8e-05,3]
[407777031,1772793039530,-150.1141778,3.8e-05,3]
[407777032,1772793039540,-150.12938701,3.8e-05,3]
[407777033,1772793039550,-181.45958855,3.8e-05,2]
[407777034,1772793039560,-151.0,3.8e-05,2]
[407777035,1772793039570,-151.0,3.8e-05,2]
[407777036,1772793039584,-151.0,3.8e-05,2]
[407777037,1772793039603,-265.15091,3.8e-05,2]
[407777038,1772793039612,-169.0495203,3.894e-05,2]
[407777039,1772793039622,-191.182807,3.896e-05,2]
[407777040,1772793039631,-307.11844348,3.95e-05,2]
[407777041,1772793039640,-480.86587284,3.953e-05,2]
[407777042,1772793039649,-641.66334509,3.953e-05,2]
[407777043,1772793039659,-500.0,3.953e-05,2]
[407777044,1772793039668,-500.0,3.953e-05,2]
[407777045,1772793039678,-500.0,3.953e-05,2]
[407777046,1772793039687,-500.0,3.953e-05,2]
[407777047,1772793039696,-500.0,3.953e-05,2]
[407777048,1772793039705,-500.0,3.953e-05,2]
[407777049,1772793039714,-500.0,3.953e-05,2]
[407777050,1772793039725,-500.0,3.953e-05,2]
[407777051,1772793039734,-500.0,3.953e-05,2]
[407777052,1772793039743,-500.0,3.953e-05,2]
[407777053,1772793039753,-500.0,3.953e-05,2]
[407777054,1772793039762,-500.0,3.953e-05,2]
[407777055,1772793039771,-500.0,3.953e-05,2]
[407777056,1772793039782,-500.0,3.953e-05,2]
[407777057,1772793039791,-500.0,3.953e-05,2]
[407777058,1772793039800,-500.0,3.953e-05,2]
[407777059,1772793039809,-500.0,3.953e-05,2]
[407777060,1772793039819,-500.0,3.953e-05,2]
[407777061,1772793039830,-500.0,3.953e-05,2]
[407777062,1772793039840,-500.0,3.953e-05,2]
[407777064,1772793039849,-500.0,3.953e-05,2]
[407777065,1772793039858,-500.0,3.953e-05,2]
[407777066,1772793039867,-500.0,3.953e-05,2]
[407777068,1772793039877,-500.0,3.953e-05,2]
[407777069,1772793039887,-500.0,3.953e-05,2]
[407777071,1772793039896,-445.202766,3.974e-05,2]
[407777073,1772793039906,-500.0,3.974e-05,2]
[407777074,1772793039915,-162.380719,3.974e-05,2]
[407777075,1772793039926,-500.0,3.974e-05,2]
[407777076,1772793039935,-500.0,3.974e-05,2]
[407777077,1772793039945,-500.0,3.974e-05,2]
[407777078,1772793039954,-500.0,3.974e-05,2]
[407777079,1772793039963,-500.0,3.974e-05,2]
[407777080,1772793039973,-162.380719,3.974e-05,2]
[407777082,1772793039982,-500.0,3.974e-05,2]
[407777083,1772793039991,-168.3888056,3.974e-05,2]
[407777084,1772793040264,-500.0,3.974e-05,2]
[407777085,1772793040283,-500.0,3.974e-05,2]
[407777086,1772793040292,-174.61919141,3.974e-05,2]
[407777087,1772793040302,-500.0,3.974e-05,2]
[407777088,1772793040311,-500.0,3.974e-05,2]
[407777089,1772793040320,-181.08010149,3.974e-05,2]
[407777090,1772793040330,-500.0,3.974e-05,2]
[407777091,1772793040339,-187.78006525,3.974e-05,2]
[407777092,1772793040349,-500.0,3.974e-05,2]
[407777094,1772793040360,-500.0,3.974e-05,2]
[407777095,1772793040370,-500.0,3.974e-05,2]
[407777096,1772793040379,-194.72792766,3.974e-05,2]
[407777097,1772793040389,-500.0,3.974e-05,2]
[407777098,1772793040399,-500.0,3.974e-05,2]
[407777099,1772793040409,-201.93286099,3.974e-05,2]
[407777100,1772793040419,-500.0,3.974e-05,2]
[407777101,1772793040428,-500.0,3.974e-05,2]
[407777102,1772793040438,-209.40437684,3.974e-05,2]
[407777103,1772793040447,-500.0,3.974e-05,2]
[407777104,1772793040456,-500.0,3.974e-05,2]
[407777105,1772793040466,-217.15233878,3.974e-05,2]
[407777106,1772793040476,-500.0,3.974e-05,2]
[407777107,1772793040486,-500.0,3.974e-05,2]
[407777108,1772793040496,-500.0,3.974e-05,2]
[407777109,1772793040506,-500.0,3.974e-05,2]
[407777110,1772793040516,-225.18697532,3.974e-05,2]
[407777111,1772793040525,-500.0,3.974e-05,2]
[407777112,1772793040534,-500.0,3.974e-05,2]
[407777113,1772793040544,-500.0,3.974e-05,2]
[407777114,1772793040554,-500.0,3.974e-05,2]
[407777115,1772793040564,-500.0,3.974e-05,2]
[407777116,1772793040573,-500.0,3.974e-05,2]
[407777117,1772793040587,-233.51889341,3.974e-05,2]
[407777118,1772793040595,-500.0,3.974e-05,2]
[407777119,1772793040604,-500.0,3.974e-05,2]
[407777120,1772793040613,-500.0,3.974e-05,2]
[407777121,1772793040622,-500.0,3.974e-05,2]
[407777122,1772793040632,-250.0,3.974e-05,2]
[407777123,1772793040642,-242.15909246,3.974e-05,2]
[407777124,1772793040652,-500.0,3.974e-05,2]
[407777125,1772793040665,-250.0,3.974e-05,2]
[407777126,1772793040675,-500.0,3.974e-05,2]
[407777128,1772793040685,-500.0,3.974e-05,2]
[407777130,1772793040694,-250.0,3.974e-05,2]
[407777132,1772793040703,-500.0,3.974e-05,2]
[407777134,1772793040712,-193.94538595,3.974e-05,2]
[407777135,1772793040720,-250.0,3.974e-05,2]
[407777137,1772793040730,-500.0,3.974e-05,2]
[407777139,1772793040739,-178.78632163,3.974e-05,2]
[407777141,1772793040748,-250.0,3.974e-05,2]
[407777143,1772793040757,-500.0,3.974e-05,2]
[407777145,1772793040767,-250.0,3.974e-05,2]
[407777147,1772793040778,-500.0,3.974e-05,2]
[407777149,1772793040788,-500.0,3.974e-05,2]
[407777151,1772793040797,-500.0,3.974e-05,2]
[407777152,1772793040807,-500.0,3.974e-05,2]
[407777153,1772793040818,-500.0,3.974e-05,2]
[407777154,1772793040829,-251.11897888,3.974e-05,2]
[407777155,1772793040840,-500.0,3.974e-05,2]
[407777156,1772793040849,-500.0,3.974e-05,2]
[407777157,1772793040858,-500.0,3.974e-05,2]
[407777158,1772793040867,-250.0,3.974e-05,2]
[407777159,1772793040877,-260.4103811,3.974e-05,2]
[407777160,1772793040886,-270.0455652,3.974e-05,2]
[407777162,1772793040896,-280.03725112,3.974e-05,2]
[407777164,1772793040906,-290.39862941,3.974e-05,2]
[407777166,1772793040916,-250.0,3.974e-05,2]
[407777168,1772793040926,-301.1433787,3.974e-05,2]
[407777170,1772793040935,-537.6845,3.974e-05,2]
[407777171,1772793040944,-250.0,3.974e-05,2]
[407777172,1772793040954,-250.0,3.974e-05,2]
[407777173,1772793040963,-250.0,3.974e-05,2]
[407777174,1772793040973,-246.56125856,3.974e-05,2]
[407777175,1772793040982,-484792.31255284,3.976e-05,2]
[407777176,1772793040991,-200.0,4e-05,2]
[407777177,1772793041001,-830.2463972,4.013e-05,2]
[407777178,1772793041010,-587.0,4.113e-05,2]
[407777179,1772793041019,-185.2530115,4.114e-05,2]
[407777180,1772793041029,-638.0,4.16e-05,2]
[407777181,1772793041038,-2189.0,4.16e-05,2]
[407777182,1772793041047,-731.0,4.16e-05,2]
[407777183,1772793041057,-377.572,4.16e-05,2]
[407777185,1772793041066,-600.0,4.173e-05,2]
[407777186,1772793041076,-2230.315306,4.324e-05,2]
[407777187,1772793041085,-397.86,4.401e-05,2]
[407777188,1772793041094,-2159.35308521,4.413e-05,2]
[407777189,1772793041104,-1000.0,4.501e-05,2]
[407777190,1772793041120,-1000.0,4.501e-05,2]
[407777191,1772793041131,-1000.0,4.501e-05,2]
[407777192,1772793041140,-1000.0,4.501e-05,2]
[407777193,1772793041150,-1000.0,4.501e-05,2]
[407777194,1772793041161,-1000.0,4.501e-05,2]
[407777195,1772793041173,-1000.0,4.501e-05,2]
[407777196,1772793041182,-1000.0,4.501e-05,2]
[407777197,1772793041191,-1000.0,4.501e-05,2]
[407777198,1772793041203,-1000.0,4.501e-05,2]
[407777199,1772793041212,-1000.0,4.501e-05,2]
[407777200,1772793041221,-1000.0,4.501e-05,2]
[407777201,1772793041230,-1000.0,4.501e-05,2]
[407777202,1772793041238,-1000.0,4.501e-05,2]
[407777203,1772793041247,-1000.0,4.501e-05,2]
[407777204,1772793041256,-1000.0,4.501e-05,2]
[407777205,1772793041265,-1000.0,4.501e-05,2]
[407777206,1772793041274,-1000.0,4.501e-05,2]
[407777207,1772793041283,-1000.0,4.501e-05,2]
[407777208,1772793041292,-1000.0,4.501e-05,2]
[407777209,1772793041301,-1000.0,4.501e-05,2]
[407777210,1772793041310,-1000.0,4.501e-05,2]
[407777211,1772793041319,-1000.0,4.501e-05,2]
[407777212,1772793041329,-1000.0,4.501e-05,2]
[407777213,1772793041338,-760.14021253,4.501e-05,2]
[407777214,1772793041348,-500.0,4.507e-05,2]
[407777215,1772793041357,-500.0,4.507e-05,2]
[407777216,1772793041366,-500.0,4.518e-05,2]
[407777217,1772793041376,-500.0,4.518e-05,2]
[407777218,1772793041385,-500.0,4.518e-05,2]
[407777219,1772793041394,-461.67526834,4.522e-05,2]
[407777220,1772793041403,-557.5788265,4.522e-05,2]
[407777221,1772793041413,-497.0,4.524e-05,2]
[407777222,1772793041422,-720.0,4.591e-05,2]
[407777223,1772793041432,-500.0,4.7e-05,2]
[407777224,1772793041442,-2312.83697232,4.872e-05,2]
[407777225,1772793041453,-150.74,5e-05,2]
[407777226,1772793041463,-152.2,5e-05,2]
[407777227,1772793041474,-153.83,5e-05,2]
[407777228,1772793041483,-772.73551414,5e-05,2]
[407777229,1772793041492,-500.0,5e-05,2]
[407777230,1772793041501,-172.81596771,5e-05,2]
[407777231,1772793041511,-502.58831501,5e-05,2]
[407777232,1772793041520,-500.0,5e-05,2]
[407777233,1772793041529,-500.0,5e-05,2]
[407777234,1772793041539,-500.0,5e-05,2]
[407777235,1772793041549,-203.79693064,5e-05,2]
[407777236,1772793041559,-500.0,5e-05,2]
[407777237,1772793041568,-500.0,5e-05,2]
[407777238,1772793041578,-500.0,5e-05,2]
[407777239,1772793041589,-500.0,5e-05,2]
[407777240,1772793041600,-500.0,5e-05,2]
[407777241,1772793041610,-500.0,5e-05,2]
[407777242,1772793041619,-500.0,5e-05,2]
[407777243,1772793041629,-500.0,5e-05,2]
[407777244,1772793041639,-500.0,5e-05,2]
[407777245,1772793041648,-500.0,5e-05,2]
[407777246,1772793041658,-500.0,5e-05,2]
[407777247,1772793041667,-500.0,5e-05,2]
[407777248,1772793041676,-500.0,5e-05,2]
[407777249,1772793041685,-500.0,5e-05,2]
[407777250,1772793041694,-500.0,5e-05,2]
[407777251,1772793041703,-500.0,5e-05,2]
[407777252,1772793041712,-168.16572467,5e-05,2]
[407777253,1772793041722,-500.0,5e-05,2]
[407777254,1772793041731,-500.0,5e-05,2]
[407777255,1772793041741,-500.0,5e-05,2]
[407777256,1772793041751,-500.0,5e-05,2]
[407777257,1772793041761,-500.0,5e-05,2]
[407777258,1772793041770,-500.0,5e-05,2]
[407777259,1772793041780,-500.0,5e-05,2]
[407777260,1772793041789,-500.0,5e-05,2]
[407777261,1772793041798,-500.0,5e-05,2]
[407777262,1772793041807,-239.02839251,5e-05,2]
[407777263,1772793041817,-500.0,5e-05,2]
[407777264,1772793041826,-500.0,5e-05,2]
[407777265,1772793041835,-500.0,5e-05,2]
[407777266,1772793041844,-500.0,5e-05,2]
[407777267,1772793041854,-500.0,5e-05,2]
[407777268,1772793041863,-500.0,5e-05,2]
[407777269,1772793041872,-377.89642955,5e-05,2]
[407777270,1772793041881,-500.0,5e-05,2]
[407777271,1772793041891,-500.0,5e-05,2]
[407777272,1772793041900,-500.0,5e-05,2]
[407777273,1772793041909,-500.0,5e-05,2]
[407777274,1772793041919,-500.0,5e-05,2]
[407777275,1772793041928,-500.0,5e-05,2]
[407777276,1772793041937,-500.0,5e-05,2]
[407777277,1772793041947,-500.0,5e-05,2]
[407777278,1772793041955,-500.0,5e-05,2]
[407777279,1772793041965,-500.0,5e-05,2]
[407777280,1772793041974,-500.0,5e-05,2]
[407777281,1772793041984,-500.0,5e-05,2]
[407777282,1772793041994,-500.0,5e-05,2]
[407777283,1772793042004,-500.0,5e-05,2]
[407777284,1772793042013,-500.0,5e-05,2]
[407777285,1772793042024,-500.0,5e-05,2]
[407777286,1772793042034,-500.0,5e-05,2]
[407777287,1772793042045,-500.0,5e-05,2]
[407777288,1772793042054,-500.0,5e-05,2]
[407777289,1772793042063,-500.0,5e-05,2]
[407777290,1772793042073,-500.0,5e-05,2]
[407777291,1772793042083,-500.0,5e-05,2]
[407777292,1772793042092,-500.0,5e-05,2]
[407777293,1772793042102,-500.0,5e-05,2]
[407777294,1772793042112,-500.0,5e-05,2]
[407777295,1772793042122,-500.0,5e-05,2]
[407777296,1772793042131,-500.0,5e-05,2]
[407777297,1772793042141,-500.0,5e-05,2]
[407777298,1772793042151,-170.92617412,5e-05,2]
[407777299,1772793042162,-172.37684369,5e-05,2]
[407777300,1772793042174,-172.37684368,5e-05,2]
[407777301,1772793042184,-172.37684368,5e-05,2]
[407777302,1772793042193,-580.05870777,5.048e-05,2]
[407777303,1772793042203,-924.06999652,5.048e-05,2]
[407777304,1772793042213,-1500.0,5.048e-05,2]
[407777305,1772793042223,-1500.0,5.048e-05,2]
[407777306,1772793042232,-1500.0,5.048e-05,2]
[407777307,1772793042242,-1500.0,5.048e-05,2]
[407777308,1772793042252,-1500.0,5.048e-05,2]
[407777309,1772793042262,-1500.0,5.048e-05,2]
[407777310,1772793042271,-1500.0,5.048e-05,2]
[407777311,1772793042282,-1500.0,5.048e-05,2]
[407777312,1772793042291,-1500.0,5.048e-05,2]
[407777313,1772793042300,-1500.0,5.048e-05,2]
[407777314,1772793042309,-1635.01358848,5.048e-05,2]
[407777315,1772793042319,-1500.0,5.048e-05,2]
[407777316,1772793042328,-1500.0,5.048e-05,2]
[407777317,1772793042337,-1500.0,5.048e-05,2]
[407777318,1772793042348,-1500.0,5.048e-05,2]
[407777319,1772793042357,-1197.03019721,5.048e-05,2]
[407777320,1772793042366,-1500.0,5.048e-05,2]
[407777321,1772793042376,-650.31485421,5.048e-05,2]
[407777322,1772793042385,-1500.0,5.048e-05,2]
[407777323,1772793042394,-1065.99247635,5.048e-05,2]
[407777324,1772793042403,-1500.0,5.048e-05,2]
[407777325,1772793042412,-1500.0,5.048e-05,2]
[407777326,1772793042421,-864.0,5.05e-05,2]
[407777327,1772793042431,-1000.0,5.055e-05,2]
[407777328,1772793042440,-1000.0,5.055e-05,2]
[407777329,1772793042450,-1000.0,5.066e-05,2]
[407777330,1772793042459,-1000.0,5.066e-05,2]
[407777331,1772793042468,-1000.0,5.066e-05,2]
[407777332,1772793042478,-478.75725327,5.07e-05,2]
[407777333,1772793042487,-578.20924308,5.07e-05,2]
[407777334,1772793042497,-500.0,5.242e-05,2]
[407777335,1772793042507,-168.3888056,5.343e-05,2]
[407777336,1772793042516,-500.0,5.378e-05,2]
[407777337,1772793042525,-500.0,5.378e-05,2]
[407777338,1772793042534,-500.0,5.378e-05,2]
[407777339,1772793042544,-500.0,5.378e-05,2]
[407777340,1772793042553,-500.0,5.378e-05,2]
[407777341,1772793042562,-500.0,5.378e-05,2]
[407777342,1772793042571,-500.0,5.378e-05,2]
[407777343,1772793042585,-500.0,5.378e-05,2]
[407777344,1772793042595,-500.0,5.378e-05,2]
[407777345,1772793042604,-563.25664368,5.378e-05,2]
[407777346,1772793042614,-500.0,5.378e-05,2]
[407777347,1772793042623,-500.0,5.378e-05,2]
[407777348,1772793042634,-2398.4119403,5.42e-05,2]
[407777349,1772793042644,-500.0,5.479e-05,2]
[407777350,1772793042654,-500.0,5.479e-05,2]
[407777351,1772793042665,-500.0,5.479e-05,2]
[407777352,1772793042674,-500.0,5.479e-05,2]
[407777353,1772793042684,-500.0,5.479e-05,2]
[407777354,1772793042694,-500.0,5.479e-05,2]
[407777355,1772793042703,-607.92085966,5.479e-05,2]
[407777356,1772793042713,-500.0,5.479e-05,2]
[407777357,1772793042723,-10000.0,5.479e-05,2]
[407777358,1772793042735,-810.3464643,5.479e-05,2]
[407777359,1772793042745,-263.5257863,5.479e-05,2]
[407777360,1772793042755,-152.39,5.5e-05,2]
[407777361,1772793042766,-500.0,5.518e-05,2]
[407777362,1772793042776,-1000.0,5.555e-05,2]
[407777363,1772793042786,-2000.0,5.596e-05,2]
[407777364,1772793042796,-2000.0,5.596e-05,2]
[407777365,1772793042806,-2000.0,5.596e-05,2]
[407777366,1772793042816,-2000.0,5.596e-05,2]
[407777367,1772793042825,-2000.0,5.596e-05,2]
[407777368,1772793042835,-2000.0,5.596e-05,2]
[407777369,1772793042845,-2000.0,5.596e-05,2]
[407777370,1772793042855,-2000.0,5.596e-05,2]
[407777371,1772793042865,-2000.0,5.596e-05,2]
[407777372,1772793042875,-2000.0,5.596e-05,2]
[407777373,1772793042885,-2000.0,5.596e-05,2]
[407777374,1772793042895,-2000.0,5.596e-05,2]
[407777375,1772793042904,-2000.0,5.596e-05,2]
[407777376,1772793042914,-2000.0,5.596e-05,2]
[407777377,1772793042924,-2000.0,5.596e-05,2]
[407777378,1772793042933,-2000.0,5.596e-05,2]
[407777379,1772793042943,-2000.0,5.596e-05,2]
[407777380,1772793042953,-2000.0,5.596e-05,2]
[407777381,1772793042962,-150.21,5.6e-05,2]
[407777382,1772793042972,-152.2,5.6e-05,2]
[407777383,1772793042982,-1500.0,5.603e-05,2]
[407777385,1772793042992,-1500.0,5.603e-05,2]
[407777386,1772793043002,-1500.0,5.614e-05,2]
[407777387,1772793043012,-1500.0,5.614e-05,2]
[407777388,1772793043021,-1500.0,5.614e-05,2]
[407777389,1772793043031,-477.53828809,5.618e-05,2]
[407777390,1772793043041,-599.60298507,5.618e-05,2]
[407777391,1772793043050,-152.39,5.7e-05,2]
[407777392,1772793043060,-153.36,5.8e-05,2]
[407777393,1772793043070,-500.0,5.809e-05,2]
[407777394,1772793043080,-353.96701961,5.95e-05,2]
[407777395,1772793043091,-2487.15318209,5.968e-05,2]
[407777396,1772793043100,-152.39,6e-05,2]
[407777397,1772793043110,-150.21,6.1e-05,2]
[407777398,1772793043119,-1000.0,6.11e-05,2]
[407777400,1772793043128,-244.0,6.11e-05,2]
[407777402,1772793043138,-500.0,6.115e-05,2]
[407777404,1772793043148,-2500.0,6.144e-05,2]
[407777407,1772793043157,-2500.0,6.144e-05,2]
[407777409,1772793043166,-2500.0,6.144e-05,2]
[407777411,1772793043176,-532.60290731,6.144e-05,2]
[407777413,1772793043185,-2500.0,6.144e-05,2]
[407777415,1772793043195,-2000.0,6.144e-05,2]
[407777416,1772793043204,-2045.05464188,6.144e-05,2]
[407777417,1772793043221,-580.95792737,6.144e-05,2]
[407777418,1772793043231,-2376.9919486,6.144e-05,2]
[407777419,1772793043242,-123.0080514,6.144e-05,2]
[407777420,1772793043251,-2500.0,6.144e-05,2]
[407777421,1772793043260,-1109.13112128,6.144e-05,2]
[407777422,1772793043446,-2500.0,6.144e-05,2]
[407777423,1772793043456,-2500.0,6.144e-05,2]
[407777424,1772793043468,-2500.0,6.144e-05,2]
[407777425,1772793043477,-651.49422731,6.144e-05,2]
[407777426,1772793043488,-2500.0,6.144e-05,2]
[407777427,1772793043498,-2207.65960443,6.144e-05,2]
[407777438,1772793043618,-2120.8158147,3.913e-05,2]
[407777440,1772793043629,-292.34039557,6.144e-05,2]
[407777442,1772793043638,-2500.0,6.144e-05,2]
[407777444,1772793043647,-2500.0,6.144e-05,2]
[407777446,1772793043657,-2000.0,6.151e-05,2]
[407777448,1772793043668,-2000.0,6.151e-05,2]
[407777450,1772793043679,-2000.0,6.162e-05,2]
[407777452,1772793043688,-1822.54134891,6.162e-05,2]
[407777454,1772793043696,-2000.0,6.162e-05,2]
[407777456,1772793043705,-621.78829552,6.166e-05,2]
[407777458,1772793043714,-7077.16567147,6.174e-05,3]
[407777460,1772793043724,-152.39,6.2e-05,2]
[407777462,1772793043732,-152.2,6.3e-05,2]
[407777464,1772793043742,-152.39,6.4e-05,2]
[407777465,1772793043751,-500.0,6.42e-05,2]
[407777467,1772793043761,-2579.17784983,6.516e-05,2]
[407777469,1772793043770,-500.51479189,6.6e-05,2]
[407777471,1772793043780,-500.0,6.6e-05,2]
[407777473,1772793043790,-500.0,6.6e-05,2]
[407777476,1772793043800,-500.0,6.6e-05,2]
[407777480,1772793043809,-500.0,6.6e-05,2]
[407777484,1772793043818,-500.0,6.6e-05,2]
[407777488,1772793043827,-500.0,6.6e-05,2]
[407777492,1772793043837,-700.0,6.6e-05,2]
[407777495,1772793043846,-500.0,6.6e-05,2]
[407777498,1772793043855,-700.0,6.6e-05,2]
[407777500,1772793043864,-500.0,6.6e-05,2]
[407777502,1772793043872,-500.0,6.6e-05,2]
[407777504,1772793043881,-700.0,6.6e-05,2]
[407777506,1772793043890,-700.0,6.6e-05,2]
[407777508,1772793043900,-700.0,6.6e-05,2]
[407777510,1772793043909,-700.0,6.6e-05,2]
[407777512,1772793043918,-700.0,6.6e-05,2]
[407777514,1772793043929,-700.0,6.6e-05,2]
[407777516,1772793043938,-700.0,6.6e-05,2]
[407777518,1772793043947,-700.0,6.6e-05,2]
[407777520,1772793043955,-700.0,6.6e-05,2]
[407777522,1772793043965,-700.0,6.6e-05,2]
[407777523,1772793043974,-710.3321106,6.6e-05,2]
[407777525,1772793043983,-700.0,6.6e-05,2]
[407777527,1772793043993,-700.0,6.6e-05,2]
[407777529,1772793044003,-700.0,6.6e-05,2]
[407777531,1772793044013,-700.0,6.6e-05,2]
[407777533,1772793044023,-700.0,6.6e-05,2]
[407777535,1772793044034,-700.0,6.6e-05,2]
[407777537,1772793044044,-700.0,6.6e-05,2]
[407777539,1772793044054,-700.0,6.6e-05,2]
[407777541,1772793044065,-700.0,6.6e-05,2]
[407777543,1772793044075,-700.0,6.6e-05,2]
[407777545,1772793044086,-700.0,6.6e-05,2]
[407777547,1772793044095,-700.0,6.6e-05,2]
[407777549,1772793044104,-701.402227,6.6e-05,2]
[407777550,1772793044113,-1000.0,6.692e-05,2]
[407777552,1772793044122,-3000.0,6.692e-05,2]
[407777554,1772793044131,-3000.0,6.692e-05,2]
[407777555,1772793044141,-3000.0,6.692e-05,2]
[407777556,1772793044151,-3000.0,6.692e-05,2]
[407777557,1772793044160,-3000.0,6.692e-05,2]
[407777558,1772793044169,-500.0,6.692e-05,2]
[407777559,1772793044180,-3000.0,6.692e-05,2]
[407777560,1772793044189,-3000.0,6.692e-05,2]
[407777561,1772793044199,-3000.0,6.692e-05,2]
[407777562,1772793044208,-3000.0,6.692e-05,2]
[407777563,1772793044216,-3000.0,6.692e-05,2]
[407777564,1772793044227,-3000.0,6.692e-05,2]
[407777565,1772793044239,-536.3477969,6.699e-05,2]
[407777566,1772793044249,-2500.0,6.699e-05,2]
[407777567,1772793044260,-153.36,6.7e-05,2]
[407777568,1772793044271,-152.39,6.7e-05,2]
[407777569,1772793044280,-150.21,6.7e-05,2]
[407777570,1772793044291,-2500.0,6.709e-05,2]
[407777571,1772793044301,-2406.6880175,6.709e-05,2]
[407777572,1772793044313,-174.61919141,6.712e-05,2]
[407777573,1772793044323,-644.79446246,6.714e-05,2]
[407777574,1772793044334,-1000.0,6.721e-05,2]
[407777575,1772793044344,-492.0,6.721e-05,2]
[407777576,1772793044355,-500.0,6.741e-05,2]
[407777577,1772793044364,-334.29333295,6.849e-05,2]
[407777578,1772793044373,-418.78957584,6.849e-05,2]
[407777579,1772793044382,-383.00021902,6.849e-05,2]
[407777580,1772793044391,-481.90452224,6.849e-05,2]
[407777581,1772793044401,-267.6894595,6.849e-05,2]
[407777582,1772793044411,-747.04846646,6.849e-05,2]
[407777583,1772793044420,-478.11101853,6.849e-05,2]
[407777584,1772793044430,-418.34714122,6.849e-05,2]
[407777585,1772793044439,-333.78770604,6.849e-05,3]
[407777586,1772793044449,-370.7349941,6.849e-05,2]
[407777587,1772793044458,-205.75792173,6.849e-05,2]
[407777588,1772793044467,-1007.32256472,6.849e-05,2]
[407777589,1772793044478,-644.68644142,6.849e-05,2]
[407777590,1772793044487,-362.6361233,6.849e-05,2]
[407777591,1772793044496,-201.46451294,6.849e-05,2]
[407777592,1772793044507,-436.21572512,6.849e-05,3]
[407777593,1772793044517,-209.14660727,6.849e-05,3]
[407777594,1772793044528,-1026.29135576,6.849e-05,2]
[407777595,1772793044538,-656.82646769,6.849e-05,2]
[407777596,1772793044548,-369.46488807,6.849e-05,2]
[407777597,1772793044559,-205.25827115,6.849e-05,2]
[407777598,1772793044569,-439.81897494,6.849e-05,3]
[407777599,1772793044579,-2222.39732779,6.849e-05,2]
[407777600,1772793044594,-1543.33147763,6.849e-05,2]
[407777601,1772793044604,-987.73214569,6.849e-05,2]
[407777602,1772793044616,-555.59933195,6.849e-05,2]
[407777603,1772793044628,-308.66629553,6.849e-05,2]
[407777604,1772793044638,-1094.31211685,6.849e-05,3]
[407777605,1772793044648,-965.21086293,6.849e-05,2]
[407777606,1772793044660,-617.73495228,6.849e-05,2]
[407777607,1772793044670,-347.47591066,6.849e-05,2]
[407777608,1772793044680,-193.04217259,6.849e-05,2]
[407777609,1772793044689,-419.52928061,6.849e-05,3]
[407777610,1772793044699,-576.50560786,6.849e-05,2]
[407777611,1772793044709,-368.96358903,6.849e-05,2]
[407777612,1772793044720,-322.8431404,6.849e-05,2]
[407777613,1772793044730,-250.57838885,6.849e-05,3]
[407777614,1772793044739,-443.38524283,6.849e-05,2]
[407777615,1772793044748,-186.80068965,6.849e-05,2]
[407777616,1772793044757,-156.53773059,6.849e-05,2]
[407777617,1772793044767,-372.84008928,6.849e-05,2]
[407777618,1772793044777,-206.92624955,6.849e-05,2]
[407777619,1772793044787,-211.78551909,6.849e-05,2]
[407777620,1772793044796,-334.73457836,6.849e-05,2]
[407777621,1772793044806,-180.98325146,6.849e-05,2]
[407777622,1772793044815,-530.33377938,6.849e-05,2]
[407777623,1772793044824,-339.41361881,6.849e-05,2]
[407777624,1772793044834,-296.98691645,6.849e-05,2]
[407777625,1772793044843,-289.48948089,6.849e-05,3]
[407777626,1772793044852,-337.22418612,6.849e-05,2]
[407777627,1772793044861,-215.82347912,6.849e-05,2]
[407777628,1772793044871,-188.84554423,6.849e-05,2]
[407777629,1772793044879,-184.07813792,6.849e-05,3]
[407777630,1772793044889,-300.0,6.849e-05,2]
[407777631,1772793044898,-267.71621416,6.856e-05,2]
[407777632,1772793044908,-152.39,6.9e-05,2]
[407777633,1772793044917,-152.2,6.9e-05,2]
[407777634,1772793044926,-280.84734745,6.905e-05,3]